Workbook

Sheet Foglio3
A1: PUNTEGGIO CLASSIFICA ASSOLUTA SOCIETA' XXXIII° CIRCUITO MASTER OLD STARS 2019
A3: SOCIETA' | B3: TEMU' | E3: S.Cat.SG | H3: S.Cat.G | K3: S.Cat.S | N3: Spiazzi | Q3: Aprica G. | T3: Aprica | W3: Aprica
B4: F | C4: M | D4: Totale | E4: F | F4: M | G4: Totale | H4: F | I4: M | J4: Totale | K4: F | L4: M | M4: Totale | N4: F | O4: M | P4: Totale | Q4: F | R4: M | S4: Totale | T4: F | U4: M | V4: Totale | W4: F | X4: M | Y4: Totale
A5: G.S.A. Marinelli | B5: 100 | C5: 99 | D5: 199 | E5: 80 | F5: 78 | G5: 158 | H5: 80 | I5: 109 | J5: 189 | K5: 100 | L5: 96 | M5: 196 | N5: 100 | O5: 226 | P5: 326 | R5: 183 | S5: 183 | U5: 134 | V5: 134 | X5: 130 | Y5: 130
A6: S.C. Cernobbio | B6: 490 | C6: 1349 | D6: 1839 | E6: 471 | F6: 1522 | G6: 1993 | H6: 516 | I6: 1614 | J6: 2130 | K6: 545 | L6: 1496 | M6: 2041 | N6: 310 | O6: 358 | P6: 668 | Q6: 445 | R6: 1023 | S6: 1468 | T6: 430 | U6: 1436 | V6: 1866 | W6: 385 | X6: 1157 | Y6: 1542
A7: S.C. La Recastello | B7: 455 | C7: 1095 | D7: 1550 | E7: 340 | F7: 1041 | G7: 1381 | H7: 310 | I7: 1182 | J7: 1492 | K7: 320 | L7: 1067 | M7: 1387 | N7: 600 | O7: 1677 | P7: 2277 | Q7: 565 | R7: 1259 | S7: 1824 | T7: 540 | U7: 1236 | V7: 1776 | W7: 585 | X7: 960 | Y7: 1545
A8: S.C. Ski Mountain | B8: 45 | C8: 895 | D8: 940 | E8: 60 | F8: 674 | G8: 794 | H8: 60 | I8: 703 | J8: 763 | K8: 80 | L8: 678 | M8: 758 | N8: 180 | O8: 786 | P8: 966 | Q8: 160 | R8: 637 | S8: 797 | T8: 160 | U8: 633 | V8: 793 | W8: 160 | X8: 608 | Y8: 768
A10: SOCIETA' | B10: Lizzola | E10: ChiesaSG | H10: ChiesaSG | K10: Temu' | N10: Tonale | Q10: Tonale | T10: Temù SG
B11: F | C11: M | D11: Totale | E11: F | F11: M | G11: Totale | H11: F | I11: M | J11: Totale | K11: F | L11: M | M11: Totale | N11: F | O11: M | P11: Totale | Q11: F | R11: M | S11: Totale | T11: F | U11: M | V11: Totale | W11: Femm.le | Y11: Maschile | Z11: TOTALE
A12: G.S.A. Marinelli | C12: 111 | D12: 111 | E12: 100 | F12: 52 | G12: 152 | H12: 100 | I12: 56 | J12: 156 | K12: 100 | L12: 120 | M12: 220 | O12: 131 | P12: 131 | R12: 131 | S12: 131 | U12: 121 | V12: 121 | W12: =B5+E5+H5+K5+N5+E12+H12+K12 -> 760 | Y12: =C5+F5+I5+L5+O5+R5+U5+X5+C12+F12+I12+L12+O12+R12+U12 -> 1777 | Z12: =SUM(W12:Y12) -> 2537
A13: S.C. Cernobbio | B13: 350 | C13: 1030 | D13: 1380 | E13: 574 | F13: 1524 | G13: 2139 | H13: 565 | I13: 1440 | J13: 2005 | K13: 440 | L13: 1131 | M13: 1571 | N13: 670 | O13: 868 | P13: 1538 | Q13: 660 | R13: 929 | S13: 1589 | T13: 525 | U13: 1112 | V13: 1637 | W13: =B6+E6+H6+K6+N6+Q6+T6+W6+B13+E13+H13+K13+N13+Q13+T13 -> 7376 | Y13: =C6+F6+I6+L6+O6+R6+U6+X6+C13+F13+I13+L13+O13+R13+U13 -> 17989 | Z13: =SUM(W13:Y13) -> 25365
A14: S.C. La Recastello | B14: 605 | C14: 1462 | D14: 2067 | E14: 486 | F14: 1071 | G14: 1557 | H14: 486 | I14: 1156 | J14: 1642 | K14: 508 | L14: 1320 | M14: 1828 | N14: 693 | O14: 1481 | P14: 2174 | Q14: 683 | R14: 1528 | S14: 2211 | T14: 623 | U14: 1199 | V14: 1822 | W14: =B7+E7+H7+K7+N7+Q7+T7+W7+B14+E14+H14+K14+N14+Q14+T14 -> 7799 | Y14: =C7+F7+I7+L7+O7+R7+U7+X7+C14+F14+I14+L14+O14+R14+U14 -> 18734 | Z14: =SUM(W14:Y14) -> 26533
A15: S.C. Ski Mountain | B15: 200 | C15: 795 | D15: 995 | E15: 220 | F15: 941 | G15: 1161 | H15: 220 | I15: 871 | J15: 1091 | K15: 160 | L15: 703 | M15: 863 | N15: 60 | O15: 692 | P15: 752 | Q15: 60 | R15: 582 | S15: 642 | T15: 80 | U15: 502 | V15: 582 | W15: =B8+E8+H8+K8+N8+Q8+T8+W8+B15+E15+H15+K15+N15+Q15+T15 -> 1905 | Y15: =C8+F8+I8+L8+O8+R8+U8+X8+C15+F15+I15+L15+O15+R15+U15 -> 10700 | Z15: =SUM(W15:Y15) -> 12605
A17: XXXIII EDIZIONE 2019 CIRCUITO MASTER OLD STARS
B18: CLASSIFICA ASSOLUTA FEMMINILE SOCIETA'
A20: Classifica Assoluta
A21: Femminile
B22: Temu' | C22: S.Cat.SG | D22: S.Cat.G | E22: S.Cat.S | F22: Spiazzi | G22: ApricaG | H22: Aprica | I22: Aprica | J22: Lizzola | K22: Chiesa | L22: Chiesa | M22: Temu' | N22: Tonale | O22: Tonale | P22: TemùSG | Q22: TOT | R22: Posiz.
A23: S.C. La Recastello | B23: 80 | C23: 80 | D23: 80 | E23: 80 | F23: 100 | G23: 100 | H23: 100 | I23: 100 | J23: 100 | K23: 80 | L23: 80 | M23: 100 | N23: 100 | O23: 100 | P23: 100 | Q23: =SUM(B23:P23) -> 1380 | R23: 1
A24: S.C. Cernobbio | B24: 100 | C24: 100 | D24: 100 | E24: 100 | F24: 80 | G24: 80 | H24: 80 | I24: 80 | J24: 80 | K24: 100 | L24: 100 | M24: 80 | N24: 80 | O24: 80 | P24: 80 | Q24: =SUM(B24:P24) -> 1320 | R24: 2
A25: S.C. Ski Mountain | B25: 50 | C25: 50 | D25: 50 | E25: 50 | F25: 60 | G25: 60 | H25: 60 | I25: 60 | J25: 60 | K25: 60 | L25: 60 | M25: 60 | N25: 60 | O25: 60 | P25: 60 | Q25: =SUM(B25:P25) -> 860 | R25: 3
A26: G.S.A. Marinelli | B26: 60 | C26: 60 | D26: 60 | E26: 60 | F26: 50 | K26: 50 | L26: 50 | M26: 50 | Q26: =SUM(B26:P26) -> 440 | R26: 4
A29: XXXIII EDIZIONE 2019 CIRCUITO MASTER OLD STARS
C30: CLASSIFICA ASSOLUTA MASCHILE SOCIETA'
A32: Classifica Assoluta
A33: Maschile
B34: Temu' | C34: S.CatSG | D34: S.Cat.G | E34: S.Cat.S | F34: Spiazzi | G34: ApricaG | H34: Aprica | I34: Aprica | J34: Lizzola | K34: Chiesa | L34: Chiesa | M34: Temu' | N34: Tonale | O34: Tonale | P34: TemùSG | Q34: TOT | R34: Posiz.
A35: S.C. Cernobbio | B35: 100 | C35: 100 | D35: 100 | E35: 100 | F35: 60 | G35: 80 | H35: 100 | I35: 100 | J35: 80 | K35: 100 | L35: 100 | M35: 80 | N35: 80 | O35: 80 | P35: 80 | Q35: =SUM(B35:P35) -> 1340 | R35: 1
A36: S.C. La Recastello | B36: 80 | C36: 80 | D36: 80 | E36: 80 | F36: 100 | G36: 100 | H36: 80 | I36: 80 | J36: 100 | K36: 80 | L36: 80 | M36: 100 | N36: 100 | O36: 100 | P36: 100 | Q36: =SUM(B36:P36) -> 1340 | R36: 1
A37: S.C. Ski Mountain | B37: 60 | C37: 60 | D37: 60 | E37: 60 | F37: 80 | G37: 60 | H37: 60 | I37: 60 | J37: 60 | K37: 60 | L37: 60 | M37: 60 | N37: 60 | O37: 60 | P37: 60 | Q37: =SUM(B37:P37) -> 920 | R37: 3
A38: G.S.A. Marinelli | B38: 50 | C38: 50 | D38: 50 | E38: 50 | F38: 50 | G38: 50 | H38: 50 | I38: 50 | J38: 50 | K38: 50 | L38: 50 | M38: 50 | N38: 50 | O38: 50 | P38: 50 | Q38: =SUM(B38:P38) -> 750 | R38: 4
A41: XXXIII EDIZIONE 2019 CIRCUITO MASTER OLD STARS
C42: CLASSIFICA ASSOLUTA MASCHILE / FEMMINILE SOCIETA'
A44: Classifica Assoluta
A45: Maschile e Femminile
B46: Temu' | C46: S.Cat.SG | D46: S.Cat.G | E46: S.Cat.S | F46: Spiazzi | G46: ApricaG | H46: Aprica | I46: Aprica | J46: Lizzola | K46: Chiesa | L46: Chiesa | M46: Temu' | N46: Tonale | O46: Tonale | P46: TemùSG | Q46: TOT | R46: Posiz.
A47: S.C. Cernobbio | B47: 100 | C47: 100 | D47: 100 | E47: 100 | F47: 60 | G47: 80 | H47: 100 | I47: 100 | J47: 80 | K47: 100 | L47: 100 | M47: 80 | N47: 80 | O47: 80 | P47: 80 | Q47: =SUM(B47:P47) -> 1340 | R47: 1
A48: S.C. La Recastello | B48: 80 | C48: 80 | D48: 80 | E48: 80 | F48: 100 | G48: 100 | H48: 80 | I48: 80 | J48: 100 | K48: 80 | L48: 80 | M48: 100 | N48: 100 | O48: 100 | P48: 100 | Q48: =SUM(B48:P48) -> 1340 | R48: 1
A49: S.C. Ski Mountain | B49: 60 | C49: 60 | D49: 60 | E49: 60 | F49: 80 | G49: 60 | H49: 60 | I49: 60 | J49: 60 | K49: 60 | L49: 60 | M49: 60 | N49: 60 | O49: 60 | P49: 60 | Q49: =SUM(B49:P49) -> 920 | R49: 3
A50: G.S.A. Marinelli | B50: 50 | C50: 50 | D50: 50 | E50: 50 | F50: 50 | G50: 50 | H50: 50 | I50: 50 | J50: 50 | K50: 50 | L50: 50 | M50: 50 | N50: 50 | O50: 50 | P50: 50 | Q50: =SUM(B50:P50) -> 750 | R50: 4

Sheet Foglio4

Sheet Foglio5

Sheet Foglio6

Sheet Foglio7

Sheet Foglio8

Sheet Foglio9

Sheet Foglio10

Sheet Foglio11

Sheet Foglio12

Sheet Foglio13

Sheet Foglio14

Sheet Foglio15

Sheet Foglio16
